fUSD/lending_fUSD_20251208
["ID","MTS","AMOUNT","RATE_DAILY","PERIOD"]
[397137636,1765152001225,300.0,0.00010773,2]
[397137637,1765152001315,-220.51439262,0.00010774,2]
[397137638,1765152001526,300.0,0.00010773,2]
[397137639,1765152001662,300.0,0.00010773,2]
[397137640,1765152001722,1200.0,0.00010773,2]
[397137641,1765152002238,150.0,0.00010773,2]
[397137642,1765152003758,-194.97508627,0.00010774,2]
[397137644,1765152006615,-269.29613068,0.00010774,2]
[397137645,1765152007247,255.66,0.00022,30]
[397137646,1765152009212,211.74328789,0.00010773,2]
[397137647,1765152009706,-191.70548187,0.00010774,2]
[397137648,1765152010965,-255.3361919,0.00010774,2]
[397137649,1765152013757,-263.57839106,0.00010774,2]
[397137650,1765152016689,-317.76590496,0.00010774,2]
[397137651,1765152019045,-375.32578285,0.00010774,2]
[397137652,1765152020622,-349.2979666,0.00010774,2]
[397137653,1765152022399,-165.92532664,0.00010774,2]
[397137654,1765152023891,500.0,0.00010773,2]
[397137655,1765152024026,500.0,0.00010773,2]
[397137656,1765152024206,500.0,0.00010773,2]
[397137657,1765152024380,500.0,0.00010773,2]
[397137658,1765152024546,500.0,0.00010773,2]
[397137659,1765152024678,500.0,0.00010773,2]
[397137660,1765152024875,534.96078834,0.00010773,2]
[397137661,1765152025285,-249.13115971,0.00010774,2]
[397137662,1765152029126,-286.26068285,0.00010774,2]
[397137663,1765152032606,-165.94081629,0.00010774,2]
[397137664,1765152034690,-369.04900994,0.00010774,2]
[397137665,1765152036433,-187.31676735,0.00010774,2]
[397137666,1765152036612,152.26625908,0.00010773,2]
[397137667,1765152039313,-225.6979323,0.00010774,2]
[397137668,1765152043911,500.0,0.00010773,2]
[397137669,1765152044036,608.25297197,0.00010773,2]
[397137670,1765152044674,179.51438616,0.00010674,2]
[397137671,1765152045466,-152.08394234,0.00010774,2]
[397137672,1765152047150,-230.05915553,0.00010774,2]
[397137673,1765152051369,-188.04282318,0.00010774,2]
[397137674,1765152052702,-293.34446408,0.00010774,2]
[397137675,1765152055654,-308.3957715,0.00010774,2]
[397137676,1765152057829,-151.75992859,0.00010774,2]
[397137677,1765152059348,-165.83908272,0.00010774,2]
[397137678,1765152061000,-276.77621117,0.00010774,2]
[397137680,1765152064523,-329.71158972,0.00010774,2]
[397137681,1765152066206,-254.15960761,0.00010774,2]
[397137682,1765152069339,-165.48325229,0.00010774,2]
[397137683,1765152072573,-345.30621026,0.00010774,2]
[397137684,1765152075522,-334.84585083,0.00010774,2]
[397137685,1765152078274,-278.43917617,0.00010774,2]
[397137686,1765152081151,-304.75966832,0.00010774,2]
[397137687,1765152085244,-381.83091168,0.00010774,2]
[397137688,1765152088061,-259.38251371,0.00010774,2]
[397137689,1765152089838,-271.59887157,0.00010774,2]
[397137690,1765152091487,-402.0166936,0.00010774,2]
[397137691,1765152093949,-164.99440518,0.00010774,2]
[397137692,1765152095610,-372.87455578,0.00010774,2]
[397137693,1765152097145,1163.28230656,0.00010558,2]
[397137694,1765152097187,634.36369344,0.00010558,2]
[397137695,1765152097907,-387.5734432,0.00010774,2]
[397137696,1765152098729,9365.64630656,0.00010773,2]
[397137697,1765152098772,2867.19493255,0.00010773,2]
[397137698,1765152100085,-170.15575546,0.00010774,2]
[397137699,1765152102757,1321.49663307,0.00010773,3]
[397137700,1765152104643,-268.18036584,0.00010774,2]
[397137701,1765152106114,-156.6544816,0.00010774,2]
[397137702,1765152108011,-228.15260108,0.00010774,2]
[397137703,1765152111451,-463.56054092,0.00010774,2]
[397137704,1765152115419,-164.81841022,0.00010774,2]
[397137705,1765152118659,-223.22378883,0.00010774,2]
[397137706,1765152121226,300.0,0.00010773,2]
[397137707,1765152122525,-154.77724387,0.00010774,2]
[397137708,1765152123303,250.0,0.0001077,2]
[397137709,1765152124133,-252.46156236,0.00010774,2]
[397137711,1765152125783,200.0,0.00010774,2]
[397137712,1765152125981,-215.26329084,0.00010774,2]
[397137713,1765152128587,-233.45733336,0.00010774,2]
[397137714,1765152130438,-177.91290699,0.00010774,2]
[397137715,1765152131092,500.0,0.00010774,2]
[397137716,1765152131738,500.0,0.00010774,2]
[397137717,1765152132625,500.0,0.00010774,2]
[397137718,1765152133070,500.0,0.00010774,2]
[397137719,1765152133605,500.0,0.00010774,2]
[397137720,1765152134200,500.0,0.00010774,2]
[397137721,1765152134597,-291.16687131,0.00010774,2]
[397137722,1765152134826,500.0,0.00010774,2]
[397137723,1765152135499,500.0,0.00010774,2]
[397137724,1765152136524,500.0,0.00010774,2]
[397137725,1765152136749,500.0,0.00010774,2]
[397137726,1765152137280,61.31843438,0.00010774,2]
[397137727,1765152137324,438.68156562,0.00010774,2]
[397137728,1765152137491,-335.9519711,0.00010774,2]
[397137729,1765152137890,500.0,0.00010774,2]
[397137730,1765152139104,-283.75374943,0.00010774,2]
[397137731,1765152140912,-405.48296158,0.00010774,2]
[397137732,1765152141341,151.0,0.00010774,2]
[397137733,1765152141665,500.0,0.00010774,2]
[397137734,1765152141897,151.0,0.00010774,2]
[397137735,1765152142475,151.0,0.00010774,2]
[397137736,1765152142587,500.0,0.00010774,2]
[397137737,1765152143071,151.0,0.00010774,2]
[397137738,1765152143139,-393.95267413,0.00010774,2]
[397137739,1765152143675,500.0,0.00010774,2]
[397137740,1765152143938,151.0,0.00010774,2]
[397137741,1765152144075,500.0,0.00010774,2]
[397137742,1765152144385,151.0,0.00010774,2]
[397137743,1765152144577,500.0,0.00010774,2]
[397137744,1765152144888,151.0,0.00010774,2]
[397137745,1765152145117,500.0,0.00010774,2]
[397137746,1765152145693,151.0,0.00010774,2]
[397137747,1765152146081,-317.35693689,0.00010774,2]
[397137748,1765152146233,500.0,0.00010774,2]
[397137749,1765152147243,151.0,0.00010774,2]
[397137750,1765152147430,151.0,0.00010774,2]
[397137751,1765152147657,500.0,0.00010774,2]
[397137752,1765152147819,151.0,0.00010774,2]
[397137753,1765152148078,151.0,0.00010774,2]
[397137754,1765152148297,500.0,0.00010774,2]
[397137755,1765152148490,151.0,0.00010774,2]
[397137756,1765152148691,151.0,0.00010774,2]
[397137757,1765152148945,500.0,0.00010774,2]
[397137758,1765152149086,151.0,0.00010774,2]
[397137759,1765152149320,151.0,0.00010774,2]
[397137760,1765152149484,500.0,0.00010774,2]
[397137761,1765152150182,151.0,0.00010774,2]
[397137762,1765152150399,500.0,0.00010774,2]
[397137763,1765152150743,151.0,0.00010774,2]
[397137764,1765152151217,151.0,0.00010774,2]
[397137765,1765152151457,-391.65978457,0.00010774,2]
[397137766,1765152151703,151.0,0.00010774,2]
[397137767,1765152152146,41.32843438,0.00010774,2]
[397137768,1765152152188,109.67156562,0.00010774,2]
[397137769,1765152152480,151.0,0.00010774,2]
[397137770,1765152152738,200.0,0.00010774,2]
[397137771,1765152153324,151.0,0.00010774,2]
[397137772,1765152153384,200.0,0.00010774,2]
[397137773,1765152153468,-247.57246101,0.00010774,2]
[397137774,1765152153767,151.0,0.00010774,2]
[397137775,1765152154375,151.0,0.00010774,2]
[397137776,1765152154913,151.0,0.00010774,2]
[397137777,1765152155283,-193.15543735,0.00010774,2]
[397137778,1765152155433,151.0,0.00010774,2]
[397137779,1765152155903,151.0,0.00010774,2]
[397137780,1765152156612,202.78686507,0.00010774,2]
[397137781,1765152158263,-193.35829542,0.00010774,2]
[397137782,1765152160495,500.0,0.00010774,2]
[397137783,1765152161189,-404.51307868,0.00010774,2]
[397137784,1765152164892,-274.3020677,0.00010774,2]
[397137785,1765152165462,293.22413694,0.00010774,2]
[397137786,1765152167051,-206.67696792,0.00010774,2]
[397137787,1765152169307,-332.92137536,0.00010774,2]
[397137788,1765152172922,-218.96900097,0.00010774,2]
[397137789,1765152176559,-340.95941771,0.00010774,2]
[397137790,1765152177701,243.0,0.00010773,2]
[397137791,1765152179428,-219.11987254,0.00010774,2]
[397137792,1765152181931,-167.61786871,0.00010774,2]
[397137793,1765152182009,150.0,0.00010773,2]
[397137795,1765152185460,-263.46424139,0.00010774,2]
[397137796,1765152187712,-153.24879524,0.00010774,2]
[397137797,1765152190461,-299.52008535,0.00010774,2]
[397137798,1765152192188,-164.37742808,0.00010774,2]
[397137799,1765152194014,-202.5084407,0.00010774,2]
[397137800,1765152194287,6459.74,0.00014905,5]
[397137801,1765152195686,-214.3995406,0.00010774,2]
[397137802,1765152198997,-337.55665145,0.00010774,2]
[397137803,1765152201254,-179.85435924,0.00010774,2]
[397137804,1765152203626,-305.85892136,0.00010774,2]
[397137805,1765152205284,-385.74878103,0.00010774,2]
[397137806,1765152209152,7044.32743237,0.00010124,2]
[397137807,1765152209193,10000.01,0.00010124,2]
[397137808,1765152209233,10000.01,0.00010124,2]
[397137809,1765152209270,3238.04256763,0.00010124,2]
[397137810,1765152211276,-195.02211323,0.00010774,2]
[397137811,1765152212545,17893.57927239,0.00014295,5]
[397137812,1765152212573,8957.74072761,0.00014295,5]
[397137813,1765152214038,-234.71284872,0.00010774,2]
[397137814,1765152216004,-296.51865098,0.00010774,2]
[397137815,1765152218264,-242.09070062,0.00010774,2]
[397137816,1765152219837,-174.77087134,0.00010774,2]
[397137817,1765152222875,-190.71049722,0.00010774,2]
[397137818,1765152224510,-298.98780797,0.00010774,2]
[397137819,1765152227891,-296.3515262,0.00010774,2]
[397137820,1765152229535,-450.62936248,0.00010774,2]
[397137821,1765152231287,-332.29975988,0.00010774,2]
[397137822,1765152232904,-207.94690972,0.00010774,2]
[397137823,1765152235455,-218.11660119,0.00010774,2]
[397137824,1765152237904,-185.38751086,0.00010774,2]
[397137825,1765152241394,300.0,0.00010773,2]
[397137826,1765152241725,-170.91053863,0.00010774,2]
[397137828,1765152246942,-203.64868185,0.00010774,2]
[397137829,1765152248115,152.79662156,0.00010773,2]
[397137830,1765152249889,-176.06543899,0.00010774,2]
[397137831,1765152252645,-363.1574728,0.00010774,2]
[397137832,1765152256079,-302.84841392,0.00010774,2]
[397137833,1765152258879,-180.63812226,0.00010774,2]
[397137834,1765152260547,-228.50567915,0.00010774,2]
[397137835,1765152262412,-226.8576687,0.00010774,2]
[397137836,1765152264845,-193.46264545,0.00010774,2]
[397137837,1765152266145,240.31311019,0.00010773,2]
[397137838,1765152267357,-390.13907722,0.00010774,2]
[397137839,1765152269353,228.50567915,0.00010773,2]
[397137840,1765152269625,-205.27742323,0.00010774,2]
[397137841,1765152271908,-288.70014367,0.00010774,2]
[397137842,1765152277570,-275.61666696,0.00010774,2]
[397137843,1765152279156,-226.87158316,0.00010774,2]
[397137844,1765152281083,-168.48661697,0.00010774,2]
[397137845,1765152286721,-408.77753407,0.00010774,2]
[397137846,1765152289136,-235.92066956,0.00010774,2]
[397137847,1765152291152,-179.17958908,0.00010774,2]
[397137848,1765152295255,-153.98849235,0.00010774,2]
[397137849,1765152295688,493.1774,0.00010674,2]
[397137850,1765152299255,-302.97137618,0.00010774,2]
[397137851,1765152300960,-547.85451211,0.00010774,2]
[397137852,1765152301208,1200.0,0.00010773,2]
[397137853,1765152301310,300.0,0.00010773,2]
[397137855,1765152302725,-197.87127844,0.00010774,2]
[397137856,1765152306139,-257.2408066,0.00010774,2]
[397137857,1765152307550,-174.1668069,0.00010774,2]
[397137858,1765152310607,-467.21858332,0.00010774,2]
[397137859,1765152314375,-187.82433381,0.00010774,2]
[397137860,1765152319025,-186.28386402,0.00010774,2]
[397137861,1765152320162,-164.83,0.00010774,2]
[397137862,1765152330408,500.0,0.00010773,2]
[397137863,1765152330488,-336.5168882,0.00010774,2]
[397137864,1765152330648,219.01361807,0.00010773,2]
[397137865,1765152334041,-278.32995161,0.00010774,2]
[397137866,1765152337520,-241.44965626,0.00010774,2]
[397137867,1765152340394,-173.15067302,0.00010774,2]
[397137868,1765152340513,500.0,0.00010773,2]
[397137869,1765152343691,-200.0,0.00010774,2]
[397137870,1765152345345,-195.24033168,0.00010774,2]
[397137871,1765152346938,-300.99625821,0.00010774,2]
[397137872,1765152348629,-293.40349195,0.00010774,2]
[397137873,1765152352916,-242.73987624,0.00010774,2]
[397137874,1765152357051,-211.17781171,0.00010774,2]
[397137875,1765152358799,-226.94530719,0.00010774,2]
[397137876,1765152361385,-430.52135473,0.00010774,2]
[397137877,1765152362094,150.0,0.00010773,2]
[397137878,1765152363269,-174.0,0.00010774,2]
[397137880,1765152366591,-251.83887949,0.00010774,2]
[397137881,1765152369802,-156.36076465,0.00010774,2]
[397137882,1765152371868,-193.93734653,0.00010774,2]
[397137883,1765152374489,-326.88514058,0.00010774,2]
[397137884,1765152376834,-236.33867033,0.00010774,2]
[397137885,1765152378024,500.0,0.00010124,2]
[397137886,1765152378504,-160.49768309,0.00010774,2]
[397137887,1765152381277,-219.81074151,0.00010774,2]
[397137888,1765152383920,-236.75678644,0.00010774,2]
[397137889,1765152387147,-164.35275301,0.00010774,2]
[397137890,1765152391450,-160.68909838,0.00010774,2]
[397137891,1765152393207,-241.27711829,0.00010774,2]
[397137892,1765152396618,-160.48910116,0.00010774,2]
[397137893,1765152399117,-188.58242207,0.00010774,2]
[397137894,1765152400697,-279.82291685,0.00010774,2]
[397137895,1765152404024,-428.65649089,0.00010774,2]
[397137896,1765152407052,-175.09672038,0.00010774,2]
[397137897,1765152412244,-223.5057294,0.00010774,2]
[397137898,1765152414779,-215.24468951,0.00010774,2]
[397137899,1765152416163,-161.32000017,0.00010774,2]
[397137900,1765152420001,-646.26052587,0.00010774,2]
[397137901,1765152421800,-354.79776641,0.00010774,2]
[397137902,1765152421893,300.0,0.00010773,2]
[397137904,1765152423430,-323.23238127,0.00010774,2]
[397137905,1765152426712,200.0,0.00010774,2]
[397137906,1765152426801,-200.26782861,0.00010774,2]
[397137907,1765152429373,-292.95662985,0.00010774,2]
[397137908,1765152430365,500.0,0.00010774,2]
[397137909,1765152430855,-223.96952524,0.00010774,2]
[397137910,1765152430930,500.0,0.00010774,2]
[397137911,1765152431105,151.0,0.00010774,2]
[397137912,1765152431543,500.0,0.00010774,2]
[397137913,1765152431719,151.0,0.00010774,2]
[397137914,1765152432205,500.0,0.00010774,2]
[397137915,1765152432424,151.0,0.00010774,2]
[397137916,1765152432866,500.0,0.00010774,2]
[397137917,1765152433208,151.0,0.00010774,2]
[397137918,1765152433792,500.0,0.00010774,2]
[397137919,1765152433894,-732.84210791,0.00010774,2]
[397137920,1765152434150,151.0,0.00010774,2]
[397137921,1765152434472,500.0,0.00010774,2]
[397137922,1765152434833,151.0,0.00010774,2]
[397137923,1765152434904,151.0,0.00010774,2]
[397137924,1765152435133,159.20357103,0.00010774,2]
[397137925,1765152435176,340.79642897,0.00010774,2]
[397137926,1765152436225,151.0,0.00010774,2]
[397137927,1765152436294,151.0,0.00010774,2]
[397137928,1765152436880,500.0,0.00010774,2]
[397137929,1765152437223,151.0,0.00010774,2]
[397137930,1765152437280,151.0,0.00010774,2]
[397137931,1765152437417,-459.29329795,0.00010774,2]
[397137932,1765152437584,500.0,0.00010774,2]
[397137933,1765152437936,151.0,0.00010774,2]
[397137934,1765152438005,151.0,0.00010774,2]
[397137935,1765152438308,500.0,0.00010774,2]
[397137936,1765152438768,151.0,0.00010774,2]
[397137937,1765152438824,151.0,0.00010774,2]
[397137938,1765152439054,500.0,0.00010774,2]
[397137939,1765152439228,151.0,0.00010774,2]
[397137940,1765152439283,151.0,0.00010774,2]
[397137941,1765152439596,151.0,0.00010774,2]
[397137942,1765152439662,151.0,0.00010774,2]
[397137943,1765152440410,151.0,0.00010774,2]
[397137944,1765152440734,151.0,0.00010774,2]
[397137945,1765152441039,-221.310501,0.00010774,2]
[397137946,1765152441339,2132.49,0.00010096,2]
[397137947,1765152441519,151.0,0.00010774,2]
[397137948,1765152441856,151.0,0.00010774,2]
[397137949,1765152442223,500.0,0.00010774,2]
[397137950,1765152442446,151.0,0.00010774,2]
[397137951,1765152442800,500.0,0.00010774,2]
[397137952,1765152442869,151.0,0.00010774,2]
[397137953,1765152442976,1000.0,0.00010096,2]
[397137954,1765152443318,500.0,0.00010774,2]
[397137955,1765152443390,151.0,0.00010774,2]
[397137956,1765152444258,151.0,0.00010774,2]
[397137957,1765152444330,-421.59054817,0.00010774,2]
[397137958,1765152444409,6.72357103,0.00010774,2]
[397137959,1765152444451,493.27642897,0.00010774,2]
[397137960,1765152444904,500.0,0.00010774,2]
[397137961,1765152444990,151.0,0.00010774,2]
[397137962,1765152445250,500.0,0.00010774,2]
[397137963,1765152445383,151.0,0.00010774,2]
[397137964,1765152445801,500.0,0.00010774,2]
[397137971,1765152447008,151.0,0.00010774,2]
[397137972,1765152447458,500.0,0.00010774,2]
[397137973,1765152447595,151.0,0.00010774,2]
[397137974,1765152447950,500.0,0.00010774,2]
[397137975,1765152448120,151.0,0.00010774,2]
[397137976,1765152448516,500.0,0.00010774,2]
[397137977,1765152448638,-182.29246066,0.00010774,2]
[397137978,1765152448732,200.0,0.00010774,2]
[397137979,1765152448949,500.0,0.00010774,2]
[397137980,1765152449260,500.0,0.00010774,2]
[397137981,1765152451548,200.0,0.00010774,2]
[397137982,1765152451806,-186.83597089,0.00010774,2]
[397137984,1765152454587,-153.9377962,0.00010774,2]
[397137985,1765152456328,-157.5150516,0.00010774,2]
[397137986,1765152465558,-158.81553124,0.00010774,2]
[397137987,1765152465800,500.0,0.00010774,2]
[397137988,1765152466928,-227.40236354,0.00010774,2]
[397137989,1765152467609,1370.9115,0.00010674,2]
[397137990,1765152469325,-168.38008089,0.00010774,2]
[397137991,1765152472769,-348.4908592,0.00010774,2]
[397137992,1765152473561,804.4993,0.00010674,2]
[397137993,1765152476066,-153.04285005,0.00010774,2]
[397137994,1765152478174,1200.0,0.00010773,2]
[397137995,1765152479505,-361.72669637,0.00010774,2]
[397137996,1765152481275,-192.85333522,0.00010774,2]
[397137997,1765152483001,-222.95887402,0.00010774,2]
[397137999,1765152486148,-278.95887402,0.00010774,2]
[397138000,1765152488703,-171.04112598,0.00010774,2]
[397138001,1765152492000,-167.99827593,0.00010774,2]
[397138002,1765152494754,-333.22521462,0.00010774,2]
[397138003,1765152496524,-237.31494318,0.00010774,2]
[397138004,1765152498215,-153.51251241,0.00010774,2]
[397138005,1765152499999,-177.58309466,0.00010774,2]
[397138006,1765152505093,-227.92650924,0.00010774,2]
[397138007,1765152513975,-250.0,0.00010774,2]
[397138008,1765152517858,-285.13732052,0.00010774,2]
[397138009,1765152523089,-411.32267948,0.00010774,2]
[397138010,1765152525237,-425.11012116,0.00010774,2]
[397138011,1765152528934,-379.13231221,0.00010774,2]
[397138012,1765152529262,153.71,5.052e-05,2]
[397138013,1765152530958,-158.00865061,0.00010774,2]
[397138014,1765152534098,-217.68512428,0.00010774,2]
[397138015,1765152536501,-352.56807794,0.00010774,2]
[397138016,1765152539147,-250.49910363,0.00010774,2]
[397138017,1765152541575,300.0,0.00010773,2]
[397138018,1765152541641,-200.0,0.00010774,2]
[397138019,1765152541757,22.61277103,0.00010773,2]
[397138020,1765152541799,127.38722897,0.00010773,2]
[397138022,1765152544766,-158.95079626,0.00010774,2]
[397138023,1765152546800,-191.32246681,0.00010774,2]
[397138024,1765152549009,-500.0,0.00010774,2]
[397138025,1765152551895,-164.0134949,0.00010774,2]
[397138026,1765152555846,-247.04668159,0.00010774,2]
[397138027,1765152558461,-352.51038601,0.00010774,2]
[397138028,1765152560512,-239.81581366,0.00010774,2]
[397138029,1765152561054,500.0,0.00010773,2]
[397138030,1765152561207,291.30682655,0.00010773,2]
[397138031,1765152562223,-360.38175566,0.00010774,2]
[397138032,1765152567002,187.20875955,0.00010773,2]
[397138033,1765152567102,-500.0,0.00010774,2]
[397138034,1765152568856,-239.54613912,0.00010774,2]
[397138035,1765152573175,-248.32115696,0.00010774,2]
[397138036,1765152573593,500.0,0.00010773,2]
[397138037,1765152573813,435.55434717,0.00010773,2]
[397138038,1765152576664,-426.93432986,0.00010774,2]
[397138039,1765152578586,-298.52350991,0.00010774,2]
[397138040,1765152581252,-297.84017873,0.00010774,2]
[397138041,1765152583194,-212.33042352,0.00010774,2]
[397138042,1765152584639,-349.41823264,0.00010774,2]
[397138043,1765152588442,-313.90495866,0.00010774,2]
[397138044,1765152590966,-175.25556055,0.00010774,2]
[397138045,1765152592801,-169.31791479,0.00010774,2]
[397138046,1765152595160,-300.85384487,0.00010774,2]
[397138047,1765152599420,-295.71,0.00010774,2]
[397138048,1765152601594,300.0,0.00010773,2]
[397138049,1765152601667,1200.0,0.00010773,2]
[397138050,1765152601922,-172.93075028,0.00010774,2]
[397138051,1765152601996,300.0,0.00010773,2]
[397138052,1765152604586,-401.05276483,0.00010774,2]
[397138054,1765152606497,6158.55283776,0.00010674,2]
[397138055,1765152606547,10000.01,0.00010674,2]
[397138056,1765152606596,10000.01,0.00010674,2]
[397138057,1765152606649,10000.01,0.00010674,2]
[397138058,1765152606702,10000.01,0.00010674,2]
[397138059,1765152606750,10000.01,0.00010674,2]
[397138060,1765152606803,10000.01,0.00010674,2]
[397138061,1765152606855,10000.01,0.00010674,2]
[397138062,1765152606905,10000.01,0.00010674,2]
[397138063,1765152606956,10000.01,0.00010674,2]
[397138064,1765152607753,-296.88707928,0.00010674,2]
[397138065,1765152610933,-323.53096141,0.00010674,2]
[397138090,1765152632235,-629.9790978,0.00010674,2]
[397138093,1765152632246,-763.90465199,0.00010674,2]
[397138098,1765152632284,-25061.72474751,0.00010674,2]
[397138106,1765152632353,-600.0,0.00010674,2]
[397138112,1765152632402,-6878.21148148,0.00010674,2]
[397138114,1765152632413,-4790.94264816,0.00010674,2]
[397138265,1765152638054,-435.68171857,0.0001062,2]
[397138266,1765152638407,-222.79671543,0.0001062,2]
[397138267,1765152638417,-500.0,0.00010673,2]
[397138268,1765152638431,-194.11800046,0.00010673,2]
[397138269,1765152638441,-624496.17649461,0.00010674,2]
[397138270,1765152638451,-1316.84489713,0.00010674,2]
[397138271,1765152638461,-598.94723517,0.00010774,2]
[397138272,1765152638471,-212.8815647,0.00010774,2]
[397138273,1765152638480,-109361.1049205,0.00010774,2]
[397138274,1765152638490,-180.63812226,0.00010774,2]
[397138275,1765152638501,-296.21257306,0.00010774,2]
[397138276,1765152638510,-151.0,0.00010774,2]
[397138277,1765152638519,-233.98815019,0.00010774,2]
[397138278,1765152638529,-238.0,0.00010774,2]
[397138279,1765152638539,-500.0,0.00010815,2]
[397138280,1765152638548,-1042.42867731,0.00010873,2]
[397138281,1765152638558,-826.3632091,0.00010873,2]
[397138282,1765152638567,-1942.97622255,0.00010948,2]
[397138284,1765152638577,-151.0,0.00010956,2]
[397138285,1765152638586,-500.0,0.00010958,2]
[397138287,1765152638596,-500.0,0.00010958,2]
[397138288,1765152638605,-600.0,0.00010958,2]
[397138289,1765152638615,-500.0,0.00010958,2]
[397138290,1765152638625,-500.0,0.00010958,2]
[397138291,1765152638634,-500.0,0.00010958,2]
[397138292,1765152638644,-500.0,0.00010958,2]
[397138293,1765152638653,-500.0,0.00010958,2]
[397138294,1765152638663,-500.0,0.00010958,2]
[397138295,1765152638673,-500.0,0.00010958,2]
[397138296,1765152638684,-500.0,0.00010958,2]
[397138297,1765152638695,-500.0,0.00010958,2]
[397138298,1765152638705,-500.0,0.00010958,2]
[397138299,1765152638715,-500.0,0.00010958,2]
[397138301,1765152638724,-500.0,0.00010958,2]
[397138303,1765152638735,-500.0,0.00010958,2]
[397138304,1765152638744,-500.0,0.00010958,2]
[397138306,1765152638755,-500.0,0.00010958,2]
[397138308,1765152638767,-500.0,0.00010958,2]
[397138310,1765152638776,-500.0,0.00010958,2]
[397138312,1765152638786,-500.0,0.00010958,2]
[397138313,1765152638795,-500.0,0.00010958,2]
[397138315,1765152638804,-500.0,0.00010958,2]
[397138317,1765152638813,-500.0,0.00010958,2]
[397138319,1765152638823,-500.0,0.00010958,2]
[397138321,1765152638833,-503.92558639,0.00010958,2]
[397138322,1765152638843,-500.0,0.00010958,2]
[397138324,1765152638852,-500.0,0.00010958,2]
[397138326,1765152638862,-500.0,0.00010958,2]
[397138328,1765152638871,-500.0,0.00010958,2]
[397138329,1765152638880,-500.0,0.00010958,2]
[397138331,1765152638890,-500.0,0.00010958,2]
[397138333,1765152638899,-500.0,0.00010958,2]
[397138335,1765152638908,-500.0,0.00010958,2]
[397138337,1765152638918,-500.0,0.00010958,2]
[397138340,1765152638929,-500.0,0.00010958,2]
[397138342,1765152638938,-500.0,0.00010958,2]
[397138343,1765152638947,-500.0,0.00010958,2]
[397138345,1765152638957,-505.23647424,0.00010958,2]
[397138348,1765152638966,-500.0,0.00010958,2]
[397138350,1765152638976,-204.725867,0.00010958,2]
[397138352,1765152638985,-500.0,0.00010958,2]
[397138354,1765152638995,-500.0,0.00010958,2]
[397138356,1765152639004,-500.0,0.00010958,2]
[397138358,1765152639013,-500.0,0.00010958,2]
[397138360,1765152639023,-500.0,0.00010958,2]
[397138362,1765152639032,-500.0,0.00010958,2]
[397138364,1765152639042,-643.56381536,0.00010958,2]
[397138365,1765152639051,-500.0,0.00010958,2]
[397138366,1765152639060,-500.0,0.00010958,2]
[397138367,1765152639069,-500.0,0.00010958,2]
[397138368,1765152639078,-500.0,0.00010958,2]
[397138369,1765152639087,-545.28,0.00010958,2]
[397138370,1765152639096,-500.0,0.00010958,2]
[397138371,1765152639106,-500.0,0.00010958,2]
[397138372,1765152639115,-500.0,0.00010958,2]
[397138373,1765152639124,-500.0,0.00010958,2]
[397138374,1765152639133,-500.0,0.00010958,2]
[397138375,1765152639143,-500.0,0.00010958,2]
[397138376,1765152639152,-500.0,0.00010958,2]
[397138377,1765152639161,-500.0,0.00010958,2]
[397138378,1765152639170,-500.0,0.00010958,2]
[397138379,1765152639179,-500.0,0.00010958,2]